bitfinex-derivatives/quotes_SOLF0:USTF0_20241212
["timestamp","ask_amount","ask_price","bid_price","bid_amount"]
[1734015630367,1.3172,232.73,232.5,4.226]
[1734015630566,1.3172,232.73,232.53,16.55518085]
[1734015630759,3.12,232.74,232.57,16.55518085]
[1734015630957,3.12,232.74,232.58,3.12]
[1734015631158,2.1479,232.71,232.65,2.1483]
[1734015631367,3.12,232.74,232.61,16.55518085]
[1734015631568,3.12,232.75,232.62,2.8332]
[1734015631767,2.1476,232.73,232.68,2.148]
[1734015632570,2.1475,232.75,232.7,2.1479]
[1734015633568,2.1475,232.75,232.65,3.12]
[1734015633965,2.1474,232.76,232.65,3.12]
[1734015634164,2.1474,232.76,232.7,2.1478]
[1734015634374,3.12,232.8,232.65,3.12]
[1734015635469,2.1475,232.75,232.69,2.148]
[1734015635666,3.12,232.8,232.69,2.148]
[1734015636067,5.1083887,232.82,232.65,3.12]
[1734015636272,8.2283887,232.82,232.65,3.12]
[1734015636666,2.1477,232.72,232.66,2.1482]
[1734015637073,2.1477,232.72,232.65,3.12]
[1734015637274,2.1477,232.72,232.65,2.1483]
[1734015637478,2.148,232.69,232.62,5.9532]
[1734015637670,3.12,232.75,232.62,5.9532]
[1734015638375,3.12,232.75,232.65,5.14536679]
[1734015639181,2.148,232.69,232.65,5.14536679]
[1734015639376,3.12,232.75,232.65,5.14536679]
[1734015639881,2.1479,232.7,232.65,7.29366679]
[1734015640074,2.1479,232.7,232.65,5.14536679]
[1734015640675,3.12,232.76,232.62,2.8332]
[1734015640877,1.4478,232.75,232.62,2.8332]
[1734015641077,2.1484,232.65,232.62,1.4181]
[1734015641773,2.781,232.75,232.56,1.4163]
[1734015641774,3.12,232.69,232.56,1.4163]
[1734015641969,19.67518085,232.69,232.53,1.3969]
[1734015642178,16.55518085,232.65,232.51,5.03645567]
[1734015642371,2.1492,232.56,232.47,1.4513]
[1734015643183,2.1492,232.56,232.49,2.1498]
[1734015643481,2.1492,232.56,232.47,1.4513]
[1734015643877,3.12,232.59,232.51,2.1496]
[1734015644182,3.12,232.59,232.48,5.26496344]
[1734015644384,3.12,232.59,232.51,2.1496]
[1734015644575,3.12,232.59,232.45,1.3969]
[1734015645080,2.1496,232.52,232.45,1.3969]
[1734015645275,3.12,232.59,232.45,1.3969]
[1734015645578,2.1491,232.57,232.45,1.3969]
[1734015645784,3.12,232.59,232.45,1.3969]
[1734015645979,3.12,232.59,232.49,2.1498]
[1734015646281,3.12,232.59,232.45,6.62196452]
[1734015646282,5.2689,232.59,232.45,6.62196452]
[1734015647081,2.149,232.58,232.45,6.62196452]
[1734015647280,3.12,232.59,232.45,6.62196452]
[1734015647777,2.1493,232.56,232.45,6.62196452]
[1734015647974,3.12,232.59,232.45,6.62196452]
[1734015648281,3.12,232.6,232.45,6.62196452]
[1734015648778,2.149,232.58,232.45,6.62196452]
[1734015649181,3.12,232.6,232.55,2.1493]
[1734015649483,3.12,232.6,232.46,3.12]
[1734015651676,3.12,232.6,232.45,23.17714537]
[1734015651876,3.12,232.6,232.45,6.62196452]
[1734015655679,2.1498,232.5,232.45,3.5471]
[1734015656083,3.12,232.53,232.41,1.3658]
[1734015656283,2.15,232.48,232.43,2.1504]
[1734015656781,2.15,232.47,232.41,1.3658]
[1734015656977,19.67518085,232.53,232.38,1.3492]
[1734015657183,2.8441,232.52,232.38,1.3492]
[1734015657583,2.8441,232.52,232.39,2.1507]
[1734015658286,2.8441,232.52,232.38,1.3492]
[1734015658489,1.39,232.52,232.38,1.3492]
[1734015659683,2.1498,232.5,232.45,2.1502]
[1734015659987,3.12,232.53,232.45,2.1502]
[1734015660687,3.12,232.53,232.38,4.4692]
[1734015660688,2.1499,232.48,232.38,4.4692]
[1734015660883,3.12,232.53,232.38,4.4692]
[1734015661090,2.1503,232.45,232.4,2.1506]
[1734015661283,3.12,232.53,232.38,1.3492]
[1734015661284,19.67518085,232.53,232.38,1.3492]
[1734015661479,1.3655,232.52,232.38,1.3492]
[1734015662284,2.15,232.48,232.43,2.1503]
[1734015662484,16.55518085,232.57,232.4,16.55518085]
[1734015662485,3.12,232.55,232.4,16.55518085]
[1734015662690,2.1495,232.54,232.49,2.1497]
[1734015662988,3.12,232.59,232.4,16.55518085]
[1734015663188,2.1492,232.56,232.5,2.1496]
[1734015663382,2.616,232.64,232.44,16.55518085]
[1734015663383,3.12,232.61,232.44,16.55518085]
[1734015663582,2.616,232.64,232.45,2.7243]
[1734015663791,3.12,232.64,232.48,16.55518085]
[1734015664085,3.12,232.64,232.49,1.43]
[1734015665990,0.70972419,232.63,232.49,1.43]
[1734015666191,2.1494,232.54,232.49,3.5798]
[1734015666387,1.3181,232.63,232.49,3.5798]
[1734015666890,2.1492,232.56,232.49,1.43]
[1734015667681,1.3181,232.63,232.49,1.43]
[1734015667891,3.12,232.64,232.49,1.43]
[1734015668091,3.1,232.65,232.49,1.43]
[1734015668387,16.55518085,232.69,232.49,1.43]
[1734015668388,3.1,232.69,232.51,16.55518085]
[1734015668690,3.1,232.69,232.55,16.55518085]
[1734015668992,3.1,232.69,232.56,2.6724]
[1734015669586,3.1,232.69,232.59,2.1488]
[1734015670287,3.1,232.69,232.56,2.6724]
[1734015670790,2.1482,232.68,232.56,2.6724]
[1734015671494,3.1,232.69,232.59,2.1488]
[1734015671708,3.1,232.69,232.56,2.6724]
[1734015671914,5.2196855,232.74,232.56,2.6724]
[1734015672118,16.55518085,232.77,232.56,2.6724]
[1734015672311,3.8093666,232.76,232.56,2.6724]
[1734015672506,16.55518085,232.77,232.56,2.6724]
[1734015672507,2.1479,232.7,232.56,2.6724]
[1734015672808,16.55518085,232.73,232.56,2.6724]
[1734015673306,16.55518085,232.69,232.56,1.333]
[1734015673509,3.1,232.68,232.56,1.333]
[1734015674398,2.1489,232.59,232.56,1.333]
[1734015674598,3.1,232.68,232.56,1.333]
[1734015674798,2.149,232.58,232.53,2.1494]
[1734015675101,3.1,232.6,232.49,1.43]
[1734015675303,2.1497,232.51,232.49,1.43]
[1734015675500,19.65518085,232.6,232.41,3.1]
[1734015675702,1.3426,232.59,232.42,3.58367785]
[1734015675898,16.55518085,232.56,232.42,3.58367785]
[1734015676198,2.7063,232.59,232.42,3.58367785]
[1734015676400,2.1494,232.54,232.49,2.1498]
[1734015676607,2.7063,232.59,232.42,3.58367785]
[1734015677000,2.1494,232.54,232.47,2.1499]
[1734015677297,2.1494,232.54,232.42,3.58367785]
[1734015677298,2.7063,232.59,232.42,3.58367785]
[1734015678403,16.55518085,232.56,232.42,3.58367785]
[1734015678819,2.1499,232.49,232.42,5.73407785]
[1734015678998,3.1,232.51,232.42,3.58367785]
[1734015679400,2.1498,232.5,232.44,2.1503]
[1734015679602,3.1,232.51,232.42,3.58367785]
[1734015680103,2.1499,232.48,232.42,3.58367785]
[1734015680699,3.1,232.51,232.42,3.58367785]
[1734015681106,2.1498,232.5,232.46,2.1501]
[1734015681305,2.1498,232.5,232.42,3.58367785]
[1734015681306,2.7063,232.59,232.42,3.58367785]
[1734015681609,2.1493,232.55,232.48,2.1499]
[1734015681807,3.1,232.58,232.48,2.1499]
[1734015682509,2.1496,232.52,232.48,2.1499]
[1734015682704,3.1,232.58,232.42,1.4324]
[1734015682910,0.17576,232.63,232.44,16.55518085]
[1734015683106,3.1,232.62,232.45,3.1]
[1734015683310,0.17576,232.63,232.56,2.1491]
[1734015683506,2.1488,232.61,232.48,16.55518085]
[1734015683707,0.17576,232.63,232.49,1.3263]
[1734015684109,2.1488,232.61,232.56,2.1491]
[1734015684411,0.17576,232.63,232.5,1.4288]
[1734015684913,0.17576,232.63,232.52,16.55518085]
[1734015685208,0.17576,232.63,232.53,3.1]
[1734015685407,0.17576,232.63,232.56,2.1492]
[1734015685706,0.17576,232.63,232.53,4.4189]
[1734015685906,0.17576,232.63,232.62,2.1486]
[1734015686809,0.17576,232.63,232.53,4.4189]
[1734015687207,0.17576,232.63,232.62,2.1486]
[1734015687708,0.17576,232.63,232.58,1.43]
[1734015688110,0.17576,232.63,232.53,1.3189]
[1734015689113,0.17576,232.63,232.56,2.1492]
[1734015689910,0.17576,232.63,232.53,1.3189]
[1734015690110,0.17576,232.63,232.51,5.22981434]
[1734015690111,16.73094085,232.63,232.51,5.22981434]
[1734015690307,16.73094085,232.63,232.42,2.7794]
[1734015690911,0.7097545,232.62,232.42,2.7794]
[1734015691112,16.73094085,232.63,232.42,2.7794]
[1734015691312,0.70975027,232.62,232.46,6.52413544]
[1734015691513,0.70975027,232.62,232.46,5.09413544]
[1734015691823,16.55518085,232.59,232.46,5.09413544]
[1734015692016,3.1,232.58,232.42,2.7794]
[1734015692410,3.1,232.58,232.43,5.2680337]
[1734015693118,2.1498,232.5,232.44,2.1502]
[1734015693318,3.1,232.58,232.44,2.1502]
[1734015693516,3.1,232.58,232.43,5.2680337]
[1734015693717,0.70991689,232.57,232.43,5.2680337]
[1734015694420,0.70991689,232.57,232.42,2.7794]
[1734015695120,16.55518085,232.55,232.42,4.9299]
[1734015695319,16.55518085,232.55,232.41,5.15893722]
[1734015695519,2.7449,232.54,232.41,5.15893722]
[1734015695918,2.7449,232.54,232.41,7.30953722]
[1734015695919,2.1501,232.47,232.41,7.30953722]
[1734015696120,3.1,232.5,232.41,5.15893722]
[1734015696717,5.23532005,232.59,232.41,5.15893722]
[1734015696913,2.1496,232.52,232.46,2.15]
[1734015697423,2.1497,232.5,232.46,2.15]
[1734015697918,3.1,232.55,232.41,5.15893722]
[1734015699023,3.1,232.55,232.45,2.1502]
[1734015699228,2.1495,232.53,232.42,3.1]
[1734015699524,3.1,232.55,232.45,2.1501]
[1734015699825,2.1494,232.54,232.42,3.1]
[1734015700031,3.1,232.55,232.49,2.1498]
[1734015700319,16.55518085,232.67,232.42,3.1]
[1734015700525,15.57503895,232.66,232.45,16.55518085]
[1734015700720,15.57503895,232.66,232.46,1.4034]
[1734015700721,5.99434838,232.65,232.46,1.4034]
[1734015700921,2.1489,232.6,232.46,1.4034]
[1734015701116,2.1489,232.6,232.47,2.828]
[1734015701322,2.1489,232.6,232.54,2.1493]
[1734015701521,2.1487,232.62,232.51,3.1]
[1734015702225,2.1485,232.63,232.51,3.1]
[1734015702424,9.62930348,232.68,232.51,3.1]
[1734015702626,1.4494,232.7,232.51,3.1]
[1734015702826,2.1484,232.64,232.51,3.1]
[1734015703321,3.25169,232.69,232.51,3.1]
[1734015703520,2.1485,232.63,232.51,3.1]
[1734015704026,2.1492,232.56,232.52,2.1495]
[1734015704222,2.1492,232.56,232.51,3.1]
[1734015704223,16.55518085,232.66,232.51,3.1]
[1734015704622,2.1491,232.57,232.51,5.2496]
[1734015704932,16.55518085,232.66,232.51,3.1]
[1734015705124,3.1,232.62,232.51,3.1]
[1734015705927,2.1493,232.55,232.51,3.1]
[1734015706427,3.1,232.62,232.48,2.1499]
[1734015706623,16.55518085,232.61,232.47,2.828]
[1734015707131,2.1496,232.52,232.48,2.1499]
[1734015707318,16.55518085,232.61,232.47,2.828]
[1734015707524,3.1,232.62,232.47,2.828]
[1734015707725,2.1492,232.56,232.47,2.828]
[1734015708019,3.1,232.62,232.47,2.828]
[1734015708421,2.149,232.58,232.47,2.828]
[1734015708825,3.1,232.62,232.47,2.828]
[1734015709023,2.1491,232.57,232.47,2.828]
[1734015709725,2.149,232.59,232.47,2.828]
[1734015709927,3.1,232.62,232.47,2.828]
[1734015710630,0.70979384,232.61,232.47,2.828]
[1734015711027,0.70979384,232.61,232.48,2.1499]
[1734015711437,2.1495,232.53,232.48,2.1499]
[1734015711626,3.1,232.62,232.47,1.3833]
[1734015711935,3.1,232.62,232.39,2.8021]
[1734015711936,2.1501,232.46,232.39,2.8021]
[1734015712128,2.1501,232.46,232.42,2.1505]
[1734015712329,2.1501,232.46,232.39,2.8021]
[1734015712330,3.1,232.52,232.4,5.10605938]
[1734015712627,3.1,232.52,232.42,2.1504]
[1734015712824,3.1,232.52,232.4,5.10605938]
[1734015714327,2.1499,232.49,232.4,5.10605938]
[1734015714626,3.1,232.52,232.4,5.10605938]
[1734015714828,5.2496,232.52,232.4,5.10605938]
[1734015715034,3.1,232.58,232.4,5.10605938]
[1734015715526,3.1,232.58,232.5,2.1497]
[1734015715731,16.55518085,232.62,232.44,3.1]
[1734015715933,2.1493,232.55,232.47,2.15]
[1734015716228,3.80982016,232.61,232.4,5.10605938]
[1734015716229,3.1,232.61,232.4,5.10605938]
[1734015716427,2.1492,232.56,232.51,2.1496]
[1734015716631,3.1,232.61,232.45,3.1]
[1734015717132,3.1,232.61,232.54,2.1493]
[1734015717341,3.1,232.61,232.45,3.1]
[1734015717627,2.1492,232.56,232.49,2.1498]
[1734015717828,3.1,232.61,232.45,3.1]
[1734015718230,3.1,232.61,232.49,2.1498]
[1734015718532,3.1,232.61,232.45,3.1]
[1734015718732,2.1496,232.52,232.47,2.15]
[1734015719033,16.55518085,232.58,232.4,8.20605938]
[1734015719629,16.55518085,232.58,232.46,2.1501]
[1734015719826,16.55518085,232.58,232.4,8.20605938]
[1734015720026,3.1,232.61,232.46,2.1501]
[1734015720027,2.1495,232.54,232.46,2.1501]
[1734015720331,2.1495,232.54,232.4,8.20605938]
[1734015720530,3.1,232.61,232.4,8.20605938]
[1734015720728,2.1495,232.53,232.4,8.20605938]
[1734015720933,3.1,232.61,232.4,8.20605938]
[1734015721234,2.1497,232.51,232.46,2.1501]
[1734015721430,3.1,232.61,232.41,3.1]
[1734015721628,2.1495,232.53,232.47,2.15]
[1734015721831,2.1495,232.53,232.41,3.1]
[1734015722030,16.55518085,232.59,232.41,3.1]
[1734015722526,2.1497,232.51,232.46,2.1501]
[1734015722730,2.1497,232.51,232.41,3.1]
[1734015722930,2.1495,232.53,232.49,2.1498]
[1734015723127,3.1,232.54,232.41,3.1]
[1734015723930,2.1502,232.46,232.41,2.1505]
[1734015724137,19.65518085,232.54,232.4,5.10605938]
[1734015725135,16.55518085,232.5,232.38,1.4]
[1734015725335,16.55518085,232.5,232.37,1.3702]
[1734015725738,16.55518085,232.5,232.34,2.1511]
[1734015726033,16.55518085,232.5,232.3,2.8091]
[1734015726432,16.55518085,232.5,232.35,5.05759475]
[1734015726633,5.23986438,232.51,232.35,5.05759475]
[1734015726835,2.1497,232.51,232.47,2.15]
[1734015727039,3.1,232.54,232.36,21.08868085]
[1734015728736,2.15,232.48,232.36,21.08868085]
[1734015729534,2.1498,232.5,232.36,21.08868085]
[1734015729732,3.1,232.54,232.41,2.1505]
[1734015730034,3.1,232.54,232.42,2.8398]
[1734015730444,3.967,232.61,232.43,3.1]
[1734015730445,3.1,232.59,232.43,3.1]
[1734015730634,2.1491,232.57,232.43,3.1]
[1734015730834,3.1,232.61,232.42,2.8398]
[1734015731037,16.55518085,232.58,232.42,2.8398]
[1734015732339,16.55518085,232.58,232.4,3.1]
[1734015732537,2.1498,232.49,232.44,2.1503]
[1734015733342,3.1,232.53,232.43,2.1503]
[1734015733640,3.1,232.53,232.4,3.1]
[1734015733938,2.1501,232.47,232.42,2.1504]
[1734015734135,16.55518085,232.5,232.37,1.419]
[1734015734440,16.55518085,232.5,232.39,2.1507]
[1734015734441,2.1504,232.44,232.39,2.1507]
[1734015735143,16.55518085,232.5,232.39,2.1507]
[1734015735144,2.1504,232.43,232.39,2.1507]
[1734015735435,2.7909,232.52,232.37,1.419]
[1734015735640,2.1503,232.44,232.37,1.419]
[1734015736033,16.55518085,232.5,232.37,1.419]
[1734015736239,2.1505,232.42,232.37,1.419]
[1734015736635,3.1,232.46,232.37,1.419]
[1734015737841,2.7909,232.52,232.37,1.419]
[1734015737842,2.15,232.47,232.37,1.419]
[1734015738043,3.1,232.51,232.37,1.419]
[1734015738246,3.1,232.54,232.37,1.419]
[1734015738439,2.1497,232.51,232.42,2.1504]
[1734015738646,2.1497,232.51,232.4,3.1]
[1734015739144,2.7642,232.6,232.4,3.1]
[1734015739145,1.4067,232.6,232.4,3.1]
[1734015739348,21.8248917,232.62,232.42,16.55518085]
[1734015739539,2.149,232.59,232.54,2.1493]
[1734015740132,3.1,232.65,232.48,2.6556]
[1734015740342,0.22393,232.56,232.48,2.6556]
[1734015741043,0.22393,232.56,232.55,2.1493]
[1734015741242,3.1,232.69,232.5,16.55518085]
[1734015741837,1.321,232.72,232.5,16.55518085]
[1734015742045,3.1,232.71,232.5,16.55518085]
[1734015742737,2.1483,232.66,232.6,2.1488]
[1734015743138,17.91218085,232.74,232.54,3.1]
[1734015743346,3.1,232.73,232.55,1.4291]
[1734015744453,16.55518085,232.69,232.55,1.4291]
[1734015745144,16.55518085,232.69,232.56,2.1492]
[1734015745350,16.55518085,232.69,232.55,1.4291]
[1734015745946,16.55518085,232.69,232.5,3.1]
[1734015746146,0.70953816,232.68,232.5,3.1]
[1734015746350,1.4443,232.68,232.53,2.1495]
[1734015746951,2.149,232.59,232.53,2.1495]
[1734015747153,3.1,232.63,232.52,2.1495]
[1734015747348,3.1,232.63,232.5,3.1]
[1734015747549,2.1492,232.57,232.5,3.1]
[1734015747848,2.1492,232.57,232.52,2.1495]
[1734015748647,2.149,232.58,232.5,3.1]
[1734015748849,3.1,232.63,232.5,3.1]
[1734015749850,2.149,232.59,232.54,2.1494]
[1734015750049,3.1,232.63,232.5,3.1]
[1734015750455,2.149,232.59,232.53,2.1494]
[1734015750758,16.55518085,232.6,232.48,1.3288]
[1734015750954,16.55518085,232.6,232.43,1.3219]
[1734015751444,16.55518085,232.56,232.43,1.3219]
[1734015751648,3.1,232.55,232.42,2.1504]
[1734015752056,3.1,232.55,232.4,2.6754]
[1734015752761,2.1499,232.49,232.44,2.1503]
[1734015752948,3.1,232.55,232.4,2.6754]
[1734015753455,16.55518085,232.52,232.4,1.3463]
[1734015754453,4.474,232.55,232.4,1.3463]
[1734015755046,2.1502,232.45,232.4,1.3463]
[1734015755252,16.55518085,232.52,232.36,1.4018]
[1734015755447,16.55518085,232.48,232.33,1.337]
[1734015755654,16.55518085,232.48,232.34,2.1512]
[1734015755851,1.3372,232.47,232.34,2.1512]
[1734015756055,16.55518085,232.44,232.31,74.39542396]
[1734015756255,16.55518085,232.4,232.23,2.7179]
[1734015756755,16.55518085,232.4,232.26,5.07271917]
[1734015757159,1.4505,232.39,232.26,5.07271917]
[1734015758355,2.1515,232.31,232.26,7.22461917]
[1734015758558,3.1,232.34,232.23,2.7179]
[1734015758763,3.1,232.34,232.21,5.11585826]
[1734015759861,2.1515,232.32,232.25,2.152]
[1734015760164,3.1,232.34,232.25,2.152]
[1734015760964,1.4505,232.39,232.21,5.11585826]
[1734015761158,3.1,232.38,232.21,5.11585826]
[1734015762164,2.1514,232.32,232.21,5.11585826]
[1734015762767,2.1513,232.34,232.28,2.1518]
[1734015763658,2.1513,232.34,232.29,2.1516]
[1734015763867,1.4505,232.39,232.21,5.11585826]
[1734015764068,1.4505,232.39,232.22,16.55518085]
[1734015764563,2.1509,232.37,232.21,5.11585826]
[1734015764862,1.4505,232.39,232.21,5.11585826]
[1734015765067,2.151,232.37,232.21,5.11585826]
[1734015765260,1.4505,232.39,232.32,2.1514]
[1734015765459,1.4505,232.39,232.25,3.1]
[1734015765664,1.3724,232.43,232.25,3.1]
[1734015765864,4.2983,232.57,232.25,3.1]
[1734015765865,5.8889,232.47,232.26,17.95168085]
[1734015766065,5.8889,232.47,232.3,16.55518085]
[1734015766066,4.5517,232.47,232.3,16.55518085]
[1734015766371,3.1,232.47,232.31,2.7816]
[1734015766668,3.1,232.47,232.32,3.1]
[1734015766874,3.1,232.47,232.4,2.1506]
[1734015767168,16.55518085,232.52,232.4,2.1506]
[1734015767373,2.1502,232.45,232.4,2.1506]
[1734015767570,8.28807898,232.51,232.4,2.1506]
[1734015767874,2.1502,232.46,232.32,3.1]
[1734015768777,2.1502,232.46,232.4,2.1506]
[1734015769875,3.1,232.5,232.42,2.1504]
[1734015770272,2.1496,232.52,232.46,2.1501]
[1734015770472,3.1,232.54,232.36,5.22112407]
[1734015770669,1.4517,232.55,232.37,1.3414]
[1734015770670,4.5517,232.55,232.37,1.3414]
[1734015770875,3.1,232.55,232.37,1.3414]
[1734015771575,2.1494,232.54,232.48,2.1498]
[1734015771771,3.1,232.61,232.43,3.1]
[1734015772281,2.1492,232.56,232.5,2.1497]
[1734015772472,3.1,232.61,232.5,2.1497]
[1734015772673,2.1494,232.54,232.48,2.1498]
[1734015773480,2.1493,232.56,232.49,2.1498]
[1734015773781,5.04595315,232.6,232.44,2.8776]
[1734015774278,5.04595315,232.6,232.48,2.1498]
[1734015774479,5.04595315,232.6,232.44,2.8776]
[1734015774679,2.1497,232.51,232.46,2.15]
[1734015775179,5.04595315,232.6,232.44,2.8776]
[1734015775180,16.55518085,232.57,232.44,2.8776]
[1734015775476,16.55518085,232.57,232.43,2.1503]
[1734015775677,16.55518085,232.52,232.39,3.1]
[1734015775876,19.65518085,232.52,232.39,3.1]
[1734015776084,2.1503,232.44,232.39,5.2507]
[1734015776381,1.3317,232.51,232.38,2.7678]
[1734015777773,2.1501,232.47,232.41,2.1505]
[1734015777976,3.1,232.52,232.38,2.7678]
[1734015778177,2.1495,232.53,232.38,2.7678]
[1734015778384,3.1,232.58,232.38,2.7678]
[1734015778574,1.3476,232.57,232.38,2.7678]
[1734015779381,2.1498,232.5,232.45,2.1502]
[1734015779884,16.55518085,232.56,232.38,5.8678]
[1734015780080,16.55518085,232.56,232.38,2.7678]
[1734015780575,16.55518085,232.56,232.45,2.1502]
[1734015780980,16.55518085,232.56,232.38,2.7678]
[1734015781478,16.55518085,232.44,232.26,74.41368264]
[1734015781687,2.1508,232.39,232.27,7.3458]
[1734015781983,19.65518085,232.44,232.33,5.10245122]
[1734015782186,19.65518085,232.44,232.27,7.3458]
[1734015782576,2.1507,232.4,232.35,2.151]
[1734015782786,3.1,232.44,232.27,7.3458]
[1734015783187,3.1,232.44,232.33,2.1513]
[1734015783786,2.1509,232.38,232.33,2.1513]
[1734015783990,3.1,232.44,232.32,5.12000315]
[1734015784489,19.65518085,232.44,232.27,4.2458]
[1734015784788,1.3235,232.43,232.3,2.1515]
[1734015784986,1.3235,232.43,232.27,4.2458]
[1734015785285,16.55518085,232.39,232.27,5.23221957]
[1734015785487,16.55518085,232.39,232.2,3.1]
[1734015785880,16.55518085,232.35,232.16,4.1719]
[1734015786086,4.4206,232.34,232.16,7.2719]
[1734015786382,3.1,232.35,232.21,5.05815659]
[1734015786895,5.2511,232.35,232.3,2.1515]
[1734015787585,5.2511,232.35,232.24,3.1]
[1734015787586,3.1,232.35,232.24,3.1]
[1734015787782,3.1,232.35,232.21,5.05815659]
[1734015787987,19.65518085,232.35,232.16,4.1719]
[1734015788589,19.65518085,232.35,232.2,2.1525]
[1734015788983,2.1515,232.31,232.2,2.1525]
[1734015789188,19.65518085,232.35,232.19,5.28161916]
[1734015789686,2.1522,232.24,232.18,2.1526]
[1734015790082,3.1,232.28,232.18,2.1526]
[1734015790290,2.1522,232.24,232.19,2.1526]
[1734015790592,3.1,232.28,232.16,4.1719]
[1734015790786,2.1522,232.23,232.13,3.1]
[1734015790992,3.1,232.28,232.13,3.1]
[1734015791795,3.1,232.28,232.1,3.1]
[1734015791991,3.1,232.28,232.1,2.15424386]
[1734015792593,2.1524,232.21,232.15,2.1529]
[1734015792793,2.1524,232.21,232.1,2.15424386]
[1734015792992,2.1524,232.21,232.15,5.22400529]
[1734015793190,2.1524,232.21,232.17,2.1528]
[1734015793595,3.1,232.28,232.1,2.15424386]
[1734015793596,16.55518085,232.27,232.1,2.15424386]
[1734015793890,3.1,232.28,232.1,2.15424386]
[1734015793891,16.55518085,232.23,232.1,2.15424386]
[1734015794099,2.1526,232.2,232.1,2.15424386]
[1734015794390,3.1,232.19,232.1,2.15424386]
[1734015794596,19.65518085,232.19,232.1,2.15424386]
[1734015794793,1.3632,232.18,232.1,2.15424386]
[1734015795493,2.8109,232.18,232.1,2.15424386]
[1734015795694,2.1529,232.16,232.1,2.15424386]
[1734015795894,2.8109,232.18,232.1,2.15424386]
[1734015796595,2.8109,232.18,232.04,5.23501144]
[1734015796790,1.3632,232.18,232.04,5.23501144]
[1734015797098,3.1,232.22,232.04,21.79019229]
[1734015797392,3.1,232.24,232.04,21.79019229]
[1734015797587,3.1,232.24,232.08,16.55518085]
[1734015797791,3.1,232.24,232.09,3.1]
[1734015799095,2.152,232.26,232.21,2.1524]
[1734015799291,4.4733,232.28,232.09,3.1]
[1734015799991,16.55518085,232.35,232.12,16.55518085]
[1734015800293,2.1516,232.31,232.25,2.152]
[1734015800497,3.1,232.33,232.17,3.1]
[1734015801700,2.1517,232.29,232.21,2.1523]
[1734015801997,3.1,232.33,232.17,3.1]
[1734015802196,3.1,232.33,232.16,5.29480948]
[1734015802390,3.1,232.32,232.16,5.29480948]
[1734015802700,16.55518085,232.3,232.16,5.29480948]
[1734015802996,3.1,232.32,232.16,5.29480948]
[1734015803496,2.15201859,232.34,232.16,5.29480948]
[1734015803698,2.15201859,232.34,232.2,16.55518085]
[1734015803897,2.15201859,232.34,232.21,3.1]
[1734015804499,2.15201859,232.34,232.31,2.1515]
[1734015804996,2.15201859,232.34,232.33,2.1513]
[1734015805497,2.15201859,232.34,232.29,2.1516]
[1734015805798,2.15201859,232.34,232.25,1.3245]
[1734015806297,2.15201859,232.34,232.22,3.1]
[1734015806502,2.15201859,232.34,232.17,4.4752]
[1734015806903,16.55518085,232.33,232.17,1.3752]
[1734015807396,16.55518085,232.33,232.2,2.1525]
[1734015807397,2.152,232.26,232.2,2.1525]
[1734015807801,16.55518085,232.33,232.2,2.1525]
[1734015807802,2.1517,232.3,232.2,2.1525]
[1734015807997,16.55518085,232.33,232.18,2.1527]
[1734015808199,16.55518085,232.29,232.18,2.1527]
[1734015808396,3.1,232.28,232.17,1.3752]
[1734015809399,3.1,232.28,232.24,2.1521]